[Event "German Bundesliga 2022-23"]
[Site "Germany"]
[Date "2022.10.22"]
[Round "1.12"]
[White "Stojanovic, Dalibor"]
[Black "Burg, Twan"]
[Result "0-1"]
[ECO "C42"]
[WhiteElo "2472"]
[BlackElo "2511"]
[Annotator "TA"]
[PlyCount "124"]
[EventDate "2022.10.21"]
[EventType "team-tourn"]
[EventCountry "GER"]
[SourceTitle "playchess.com"]
[Source "ChessBase"]
[SourceQuality "1"]
[TimeControl "40/6000+30:3000+30"]

{[%evp 13,124,19,9,10,24,20,6,0,16,6,8,0,25,-20,-33,-199,-203,-358,-92,-87,-86,-91,-91,-77,-92,-76,-73,-76,-72,-75,-82,-71,-64,-88,-44,-46,-49,-46,-47,-65,-58,-56,-64,-41,-57,-65,-35,-82,-60,-90,-91,-94,-89,-175,-176,-232,-181,-266,-261,-303,-306,-279,-287,-335,-330,-447,-445,-314,-97,-228,-227,-325,-309,-316,-324,-320,-308,-413,-405,-510,-509,-469,-462,-516,-500,-526,-377,-311,-344,-364,-341,-359,-339,-499,-497,-581,-581,-579,-572,-509,-474,-459,-448,-434,-410,-534,-523,-498,-445,-562,-459,-12839,-12673]} 1. e4 {[%emt 0:00:04]} e5 {[%emt 0:00:06]} 2. Nf3 {[%emt 0:01:04]} Nf6 {[%emt 0:00:06]} 3. Nxe5 {[%emt 0:02:46]} d6 {[%emt 0:00:07]} 4. Nf3 {[%emt 0:00:11]} Nxe4 {[%emt 0:00:10]} 5. Nc3 {[%emt 0:01:48]} Nxc3 {[%emt 0:00:06]} 6. dxc3 {[%emt 0:00:05]} Be7 {[%emt 0:00:07]} 7. Be3 {[%emt 0:02:36]} O-O {[%emt 0:00:07]} 8. Qd2 {[%emt 0:01:53] C42: Petroff Defence: 3 Nxe5 and unusual White 3rd moves.} Nd7 {[%emt 0:00:08]} 9. O-O-O {[%emt 0:03:17]} Nf6 {[%emt 0:00:07]} 10. Kb1 {[%emt 0:02:11] The position is equal.} c5 {[%emt 0:02:26]} 11. Bd3 {[%emt 0:05:07]} b5 {[%emt 0:00:09]} 12. Bg5 {[%emt 0:02:39]} Be6 {[%emt 0:08:20] [#]} (12... c4 $5 {[%cal Rc4d3]} 13. Bxf6 Bxf6 $14) 13. h3 $146 {[%emt 0:17:34]} ({Predecessor:} 13. Bxf6 Bxf6 14. Be4 b4 15. c4 Rb8 16. Qd3 h6 17. Rhe1 Rb6 18. Bf5 Ra6 19. Bxe6 fxe6 20. Rxe6 {½-½ (48) Tukhaev,A (2527)-Sanal,V (2490) St Petersburg 2018}) 13... Rb8 {[%emt 0:06:57]} 14. Bxf6 $2 {[%emt 0:09:22]} (14. Rhe1 $15) 14... Bxf6 $19 {[%emt 0:01:48]} 15. Be4 $2 {[%emt 0:03:43]} (15. Rhe1 {was necessary.}) 15... b4 $2 {[%emt 0:04:33]} (15... Qa5 $19 {has better winning chances.} 16. Bd5 b4) 16. c4 $17 {[%emt 0:00:03]} Bxc4 {[%emt 0:01:48][%cal Of6c3] A strong pair of Bishops.} 17. Bd5 {[%emt 0:01:16]} (17. b3 Be6 18. Bd5 Bxd5 19. Qxd5 Qa5 $19) 17... Bxd5 {[%emt 0:08:31]} 18. Qxd5 {[%emt 0:00:04]} Rb6 {[%emt 0:00:07]} 19. g4 {[%emt 0:06:56]} Qa8 {[%emt 0:05:40]} (19... g6 $5 {[%cal Rb6a6]}) 20. g5 {[%emt 0:02:25]} Qxd5 {[%emt 0:05:10]} 21. Rxd5 {[%emt 0:00:04]} Be7 {[%emt 0:00:16]} 22. Nd2 {[%emt 0:01:08]} f6 {[%emt 0:11:42]} 23. Nc4 {[%emt 0:00:42]} Rb7 {[%emt 0:00:11]} (23... fxg5 $6 24. Nxb6 axb6 25. Rf1 $11) 24. f4 $1 {[%emt 0:00:58]} Rd7 {[%emt 0:12:42]} 25. Rhd1 {[%emt 0:14:06]} g6 {[%emt 0:07:29]} 26. b3 {[%emt 0:01:58][%cal Rc4d6]} fxg5 {[%emt 0:06:18]} 27. fxg5 {[%emt 0:00:04][%cal Rc4d6]} Rf5 {[%emt 0:01:38]} 28. Rxf5 {[%emt 0:00:35]} gxf5 $15 {[%emt 0:00:05][%mdl 4096] Endgame KRB-KRN} 29. h4 {[%emt 0:00:04]} Kg7 {[%emt 0:09:26]} (29... f4 $5 {[%cal Rh7h6]}) 30. Ne3 {[%emt 0:07:50]} (30. Rd5 $15) 30... Kg6 $17 {[%emt 0:03:52] White is on the road to losing.} ({Don't play} 30... f4 $6 31. Nd5 $11) 31. Rf1 {[%emt 0:00:52] [#]} Bf8 $1 {[%emt 0:01:48]} 32. Rxf5 {[%emt 0:00:21]} Bg7 {[%emt 0:00:37]} 33. Rf3 {[%emt 0:07:19]} (33. Rf1 $17 {keeps fighting.}) 33... Re7 $19 {[%emt 0:02:23]} 34. Kc1 {[%emt 0:02:01]} (34. a3 $142) 34... Re4 {[%emt 0:00:43]} 35. Ng2 {[%emt 0:11:49]} (35. Nf5 {is a better defense.} Bc3 36. Rf1) 35... Be5 {[%emt 0:07:43]} 36. Kd2 {[%emt 0:00:14]} Rg4 {[%emt 0:00:18]} 37. Rf2 {[%emt 0:00:48]} Kh5 {[%emt 0:00:28]} 38. Re2 {[%emt 0:01:34]} Rd4+ {[%emt 0:01:55]} 39. Ke3 {[%emt 0:00:10] [#]} Kg4 {[%emt 0:00:45]} 40. Rf2 {[%emt 0:00:54]} Kh3 $2 {[%emt 0:02:49]} (40... Kg3 $19 {and Black stays clearly on top. Strongly threatening ...d5.} 41. h5 Rd5) 41. Ne1 {[%emt 0:25:28]} (41. h5 $17) 41... Bg3 {[%emt 0:09:05]} ({And not} 41... Kxh4 42. Nf3+ Kh5 43. Nxe5 dxe5 44. Rf7 $11) ({Not} 41... Rxh4 42. Rf7) 42. Re2 {[%emt 0:01:45]} (42. Rf3 $142) 42... Rxh4 {[%emt 0:03:47]} 43. Nf3 {[%emt 0:00:13]} Rf4 {[%emt 0:01:12]} 44. Ng1+ {[%emt 0:02:06]} Kh4 {[%emt 0:03:33]} 45. Rg2 {[%emt 0:00:26] Black must now prevent Ne2.} Rg4 {[%emt 0:02:45] And now ...Bf4+ would win.} 46. Nf3+ {[%emt 0:04:31]} Kh3 {[%emt 0:01:28]} 47. Re2 {[%emt 0:01:08]} Bf4+ {[%emt 0:00:33]} 48. Ke4 {[%emt 0:00:08]} Kg3 {[%emt 0:00:57]} 49. Nh2 {[%emt 0:00:54]} Rxg5 {[%emt 0:03:05] ...Re5+ is the strong threat.} 50. Nf1+ {[%emt 0:00:38]} Kg4 {[%emt 0:00:15]} 51. Rg2+ {[%emt 0:00:05]} Kh5 {[%emt 0:03:10]} 52. Rf2 {[%emt 0:00:15]} Be5 {[%emt 0:00:19]} 53. Rf7 {[%emt 0:00:06]} (53. Rf8 $142) 53... Kg6 {[%emt 0:00:32]} 54. Rxa7 {[%emt 0:00:10]} h5 {[%emt 0:00:12][%cal Bh7h5,Bh5h4][%mdl 32]} 55. a4 {[%emt 0:01:08]} bxa3 {[%emt 0:00:15]} 56. Rxa3 {[%emt 0:00:04]} h4 {[%emt 0:00:28] Hoping for ...Rg1.} 57. Ra8 {[%emt 0:00:49]} Kh5 {[%emt 0:03:06]} 58. Ra7 {[%emt 0:00:23]} d5+ {[%emt 0:02:27][%cal Bd6d5,Bd5d4,Bd4d3][%mdl 32]} 59. Kf3 {[%emt 0:00:26]} Rf5+ {[%emt 0:01:15] Black is clearly winning.} 60. Ke2 {[%emt 0:00:04]} d4 {[%emt 0:01:55] Inhibits Ne3.} 61. Rh7+ {[%emt 0:02:15]} Kg4 {[%emt 0:00:34]} 62. c3 {[%emt 0:00:04]} (62. Rd7 $142) 62... d3+ {[%emt 0:00:10] Weighted Error Value: White=0.47/Black=0.18 (very precise)} 0-1

[Event "German Bundesliga 2022-23"]
[Site "Germany"]
[Date "2022.10.23"]
[Round "1.13"]
[White "Kasimdzhanov, Rustam"]
[Black "Teclaf, Pawel"]
[Result "1-0"]
[ECO "C10"]
[WhiteElo "2670"]
[BlackElo "2551"]
[Annotator "ChessBase"]
[PlyCount "20"]
[EventDate "2022.10.21"]
[EventType "team-tourn"]
[EventCountry "GER"]
[SourceTitle "playchess.com"]
[Source "ChessBase"]
[SourceQuality "1"]
[TimeControl "40/6000+30:3000+30"]

1. e4 e6 2. d4 d5 3. Nc3 Nf6 4. Bg5 dxe4 5. Nxe4 Nbd7 6. Nxf6+ Nxf6 7. Nf3 h6 8. Bh4 c5 {[%emt 0:14:00]} 9. Bc4 {[%emt 0:14:30]} cxd4 {[%emt 0:00:30]} 10. O-O {[%emt 0:00:30]} Be7 {[%emt 0:00:30]} 1-0

[Event "German Bundesliga 2022-23"]
[Site "Germany"]
[Date "2022.10.22"]
[Round "1.13"]
[White "Maiwald, Jens-Uwe"]
[Black "Dautov, Rustem"]
[Result "1/2-1/2"]
[ECO "B21"]
[WhiteElo "2441"]
[BlackElo "2592"]
[Annotator "TA"]
[PlyCount "50"]
[EventDate "2022.10.21"]
[EventType "team-tourn"]
[EventCountry "GER"]
[SourceTitle "playchess.com"]
[Source "ChessBase"]
[SourceQuality "1"]
[TimeControl "40/6000+30:3000+30"]

{[%evp 11,50,-1,0,-8,-5,1,-2,-16,-16,-20,-22,-18,0,0,0,0,0,-5,-9,-2,0,0,3,-8,-4,-13,-16,-25,-20,-44,-32,-36,-34,-46,0,-44,0,-41,0,-31,0]} 1. e4 {[%emt 0:00:10]} c5 {[%emt 0:00:06]} 2. Nc3 {[%emt 0:00:19]} e6 {[%emt 0:02:03]} 3. f4 {[%emt 0:01:56]} d5 {[%emt 0:01:30]} 4. Nf3 {[%emt 0:00:18]} dxe4 {[%emt 0:01:34]} 5. Nxe4 {[%emt 0:00:47]} Nc6 {[%emt 0:00:21]} 6. Bb5 {[%emt 0:07:21]} Bd7 {[%emt 0:08:47]} 7. Qe2 {[%emt 0:09:32][%cal Of4f5] B21: Sicilian: 2 f4 and Morra Gambit.} a6 {[%emt 0:20:05]} 8. Bxc6 {[%emt 0:01:42]} Bxc6 {[%emt 0:00:10]} 9. Ne5 {[%emt 0:03:26] The position is equal.} Bxe4 {[%emt 0:07:03]} 10. Qxe4 {[%emt 0:00:07]} Qd5 {[%emt 0:05:10]} 11. Qe2 {[%emt 0:04:37]} Nf6 {[%emt 0:04:29]} 12. d3 {[%emt 0:06:27]} Be7 {[%emt 0:03:34]} 13. O-O {[%emt 0:11:35]} O-O {[%emt 0:01:30]} 14. b3 {[%emt 0:01:23]} Qd4+ {[%emt 0:19:27]} 15. Be3 {[%emt 0:00:11] [#]} Qd6 $146 {[%emt 0:00:11]} ({Predecessor:} 15... Qc3 16. Rac1 Nd5 17. Bd2 Qb2 18. Nc4 Qd4+ 19. Kh1 b5 20. c3 Qf6 21. Ne5 Nb6 {0-1 (54) Gruettner,R (2083)-Vedral,O (2268) Klatovy 2014}) 16. a4 {[%emt 0:07:44]} b6 {[%emt 0:02:27]} 17. Kh1 {[%emt 0:07:13]} Nd5 {[%emt 0:03:43]} 18. Bd2 {[%emt 0:00:16]} Bf6 {[%emt 0:02:24]} 19. Rf3 {[%emt 0:05:07]} g6 {[%emt 0:03:27]} 20. Rh3 {[%emt 0:01:32]} Bg7 {[%emt 0:00:53]} 21. Re1 {[%emt 0:02:58]} Ne7 {[%emt 0:07:25]} 22. Bc3 {[%emt 0:10:52]} Nd5 {[%emt 0:01:11]} 23. Bd2 {[%emt 0:00:10]} Ne7 {[%emt 0:00:09]} 24. Bc3 {[%emt 0:00:40]} Nd5 {[%emt 0:00:32]} 25. Bd2 {[%emt 0:00:06]} Ne7 {[%emt 0:00:39] Weighted Error Value: White=0.05 (flawless) /Black=0.09 (flawless)} 1/2-1/2

[Event "German Bundesliga 2022-23"]
[Site "Germany"]
[Date "2022.10.22"]
[Round "1.13"]
[White "Dgebuadze, Alexandre"]
[Black "Bogosavljevic, Boban"]
[Result "0-1"]
[ECO "B36"]
[WhiteElo "2430"]
[BlackElo "2533"]
[Annotator "TA"]
[PlyCount "130"]
[EventDate "2022.10.21"]
[EventType "team-tourn"]
[EventCountry "GER"]
[SourceTitle "playchess.com"]
[Source "ChessBase"]
[SourceQuality "1"]
[TimeControl "40/6000+30:3000+30"]

{[%evp 18,130,43,27,43,37,46,42,32,24,35,0,0,0,0,0,0,-7,0,0,3,-8,0,0,0,0,25,0,0,-2,-3,-2,0,-25,-14,-25,-27,-21,-22,-37,-36,-37,-37,-37,-10,-12,-15,-11,-15,-19,-16,-22,-23,-81,-80,-83,-84,-93,-97,-114,-93,-112,-104,-100,-97,-114,-114,-114,-114,-114,-108,-114,-114,-147,-138,-170,-165,-168,-168,-170,-170,-183,-183,-208,-208,-208,-183,-183,-183,-194,-195,-1071,-800,-29975,-29976,-29975,-29971,-606,-599,-29981,-29981,-29980,-29980,-29978,-29979,-29980,-29981,-29981,-29982,-29985,-29986,-29986,-29986,-29986,-29987]} 1. e4 {[%emt 0:00:25]} c5 {[%emt 0:00:06]} 2. Nf3 {[%emt 0:00:04]} Nc6 {[%emt 0:00:10]} 3. d4 {[%emt 0:00:13]} cxd4 {[%emt 0:00:06]} 4. Nxd4 {[%emt 0:00:04]} g6 {[%emt 0:00:10]} 5. c4 {[%emt 0:00:11]} Nf6 {[%emt 0:00:19]} 6. Nc3 {[%emt 0:00:18]} Nxd4 {[%emt 0:00:34]} 7. Qxd4 {[%emt 0:00:13]} d6 {[%emt 0:00:04]} 8. Be2 {[%emt 0:05:23]} Bg7 {[%emt 0:00:30]} 9. Be3 {[%emt 0:00:49]} O-O {[%emt 0:00:13]} 10. Qd2 {[%emt 0:00:04]} a5 {[%emt 0:00:09][%cal Ba7a5,Ba5a4][%mdl 32] B36: Sicilian: Maroczy Bind: Gurgenidze System.} 11. O-O {[%emt 0:10:05]} a4 {[%emt 0:00:43]} 12. Rab1 {[%emt 0:07:40]} Qa5 {[%emt 0:14:09] White is slightly better.} 13. Rfd1 {[%emt 0:12:50]} Be6 {[%emt 0:09:05]} 14. f3 {[%emt 0:14:17]} Rfc8 {[%emt 0:07:04]} 15. b4 {[%emt 0:20:55]} axb3 {[%emt 0:06:56]} 16. axb3 {[%emt 0:00:05]} Nd7 {[%emt 0:03:38] [#]} 17. Nd5 $146 {[%emt 0:08:47]} ({Predecessor:} 17. Nb5 Qxd2 18. Rxd2 Nc5 19. Bd4 Bxd4+ 20. Nxd4 Bd7 21. b4 Ne6 22. c5 {½-½ (22) Lenderman,A (2537)-Kudrin,S (2543) Philadelphia 2010}) 17... Bxd5 {[%emt 0:08:08]} (17... Qxd2 {seems wilder.} 18. Rxd2 Bxd5 19. Rxd5 Ra2) 18. Qxa5 {[%emt 0:01:44]} Rxa5 {[%emt 0:00:20]} 19. Rxd5 {[%emt 0:00:12]} Rxd5 {[%emt 0:09:43]} 20. exd5 {[%emt 0:04:24]} Ra8 {[%emt 0:01:08]} 21. b4 {[%emt 0:01:15]} b6 {[%emt 0:07:33] Inhibits c5.} (21... Ra3 $5 {[%cal Ra3e3]} 22. Kf2 Nf6 $11) 22. f4 {[%emt 0:01:54]} Ra3 {[%emt 0:10:06]} 23. Bf2 {[%emt 0:01:20]} Bc3 {[%emt 0:02:01]} 24. Kf1 {[%emt 0:08:22]} f5 {[%emt 0:15:02]} 25. g4 {[%emt 0:00:50]} Nf6 {[%emt 0:02:35]} 26. c5 {[%emt 0:03:01]} bxc5 {[%emt 0:04:01]} 27. bxc5 {[%emt 0:00:07]} dxc5 {[%emt 0:01:46] With the idea ...Bd4.} (27... Nxd5 $2 28. Bc4 e6 29. Rb8+ (29. cxd6 Ra8 $16) 29... Kg7 30. Rb7+ (30. cxd6 Nxf4 31. Bg3 Ra1+ 32. Kf2 Nh3+ 33. Ke2 f4 $14) 30... Kf8 31. Bxd5 (31. cxd6 Ra8 $16) 31... Ra1+ 32. Kg2 exd5 33. c6 $18 (33. cxd6 Ra8 $18) (33. Rxh7 dxc5 34. Bxc5+ Kg8 $11)) 28. Bxc5 {[%emt 0:01:14]} Ra4 {[%emt 0:00:11]} 29. gxf5 {[%emt 0:03:09]} Rxf4+ {[%emt 0:04:15]} 30. Kg2 {[%emt 0:00:07]} gxf5 {[%emt 0:02:15]} 31. d6 {[%emt 0:03:39]} exd6 {[%emt 0:00:50]} 32. Bxd6 {[%emt 0:00:11]} Re4 {[%emt 0:00:10]} 33. Bf3 {[%emt 0:00:52] This bishop pair is nice.} Rd4 {[%emt 0:00:12]} 34. Rb8+ {[%emt 0:01:17]} Kf7 {[%emt 0:01:01]} 35. Bc5 {[%emt 0:01:01]} (35. Bg3 $11) 35... Rd2+ $17 {[%emt 0:00:09]} 36. Kf1 {[%emt 0:00:46]} Rxh2 {[%emt 0:02:02] Black is more active.} 37. Rb7+ {[%emt 0:00:20]} Kg6 {[%emt 0:00:15]} 38. Rb6 {[%emt 0:00:29]} Rd2 {[%emt 0:00:57]} 39. Rd6 {[%emt 0:00:40]} Rc2 {[%emt 0:00:51]} 40. Rc6 {[%emt 0:00:07]} Be5 {[%emt 0:00:29]} 41. Be7 {[%emt 0:51:00]} Rb2 {[%emt 0:02:04]} 42. Re6 {[%emt 0:00:00]} Bd4 {[%emt 0:04:44] ...Rf2+ is the strong threat.} 43. Be2 {[%emt 0:00:00]} Rb1+ {[%emt 0:20:14]} 44. Kg2 {[%emt 0:00:00]} Rg1+ {[%emt 0:00:16]} 45. Kf3 {[%emt 0:00:00]} h5 {[%emt 0:15:02][%cal Bh7h5,Bh5h4][%mdl 32]} 46. Bxf6 {[%emt 0:00:00]} Bxf6 {[%emt 0:00:17][%mdl 4096] Endgame KRB-KRB} 47. Kf2 {[%emt 0:00:00]} Rg5 {[%emt 0:00:15]} 48. Rd6 {[%emt 0:00:00]} h4 $1 {[%emt 0:00:21] Threatens to win with ...h3.} 49. Bf1 {[%emt 0:00:00]} Rg4 {[%emt 0:00:38]} 50. Bh3 {[%emt 0:00:00]} Rg3 {[%emt 0:00:51]} 51. Bf1 {[%emt 0:00:00]} Rb3 {[%emt 0:03:18]} 52. Bd3 {[%emt 0:00:00]} Kg5 {[%emt 0:01:45]} 53. Rd5 {[%emt 0:00:00]} Be5 $1 {[%emt 0:00:11][%cal Oh4h3]} 54. Ke2 $2 {[%emt 0:00:00]} (54. Ke3) 54... Kf4 $19 {[%emt 0:00:55]} 55. Rb5 {[%emt 0:00:00] [#]} Rxd3 $1 {[%emt 0:01:24]} 56. Kxd3 {[%emt 0:00:00] KR-KB} h3 {[%emt 0:00:05]} 57. Rb6 {[%emt 0:07:58]} h2 {[%emt 0:00:21]} 58. Rh6 {[%emt 0:00:04]} Kf3 {[%emt 0:01:00] Black mates.} 59. Rh5 {[%emt 0:00:30]} Bf4 {[%emt 0:00:29]} 60. Kd4 {[%emt 0:00:51]} Bb8 {[%emt 0:02:42]} 61. Rxf5+ {[%emt 0:00:18] [#]} Kg4 $1 62. Rf1 {[#]} Ba7+ $1 63. Ke4 Bg1 {[%emt 0:00:01]} 64. Rf4+ {[%emt 0:00:05]} Kg5 {[%emt 0:00:05]} 65. Rf5+ {[%emt 0:00:04]} Kg6 {Weighted Error Value: White=0.43/Black=0.02 (flawless)} 0-1

[Event "German Bundesliga 2022-23"]
[Site "Germany"]
[Date "2022.10.22"]
[Round "1.14"]
[White "Krasenkow, Michal"]
[Black "Boensch, Uwe"]
[Result "1-0"]
[ECO "D37"]
[WhiteElo "2550"]
[BlackElo "2466"]
[Annotator "TA"]
[PlyCount "86"]
[EventDate "2022.10.21"]
[EventType "team-tourn"]
[EventCountry "GER"]
[SourceTitle "playchess.com"]
[Source "ChessBase"]
[SourceQuality "1"]
[TimeControl "40/6000+30:3000+30"]

{[%evp 9,86,16,21,7,16,11,27,20,104,66,75,19,13,19,16,22,33,22,22,0,0,0,0,0,53,0,0,0,0,-39,-43,-39,-45,-40,-53,-33,-28,-58,-26,-45,0,0,0,0,10,7,7,4,13,0,0,0,0,0,6,6,6,6,6,6,12,0,0,0,0,0,0,5,14,14,14,0,0,0,0,0,0,0,0]} 1. Nf3 {[%emt 0:00:05]} d5 {[%emt 0:00:09]} 2. d4 {[%emt 0:00:05]} Nf6 {[%emt 0:00:06]} 3. c4 {[%emt 0:00:04]} e6 {[%emt 0:00:05]} 4. Nc3 {[%emt 0:00:03]} Be7 {[%emt 0:00:45]} 5. Bf4 {[%emt 0:00:22]} O-O {[%emt 0:00:15]} 6. a3 {[%emt 0:00:02] D37: Queen's Gambit Declined: 5 Bf4.} dxc4 {[%emt 0:05:20]} 7. e4 {[%emt 0:01:17]} b5 {[%emt 0:02:49]} 8. Nxb5 {[%emt 0:00:49] White has an edge.} Na6 {[%emt 0:00:55]} (8... Bb7 $11) 9. Bxc4 {[%emt 0:03:26] aiming for Qe2. White is more active.} Nxe4 {[%emt 0:04:49] [#]} 10. d5 $146 {[%emt 0:06:04]} (10. Qe2 $16 Nf6 11. Nc3) ({Predecessor:} 10. Ne5 Bb7 11. Rc1 c6 12. Nc3 Nd6 13. Bxa6 Bxa6 14. Nxc6 Qd7 15. d5 Qb7 16. Nb4 {0-1 (44) Almutawaa,S (1019)-Alazmi,A (1490) Kuwait 2020}) 10... Nd6 $11 {[%emt 0:05:29]} 11. Nxd6 {[%emt 0:01:03]} cxd6 {[%emt 0:01:03]} 12. dxe6 {[%emt 0:03:47]} fxe6 {[%emt 0:06:48]} 13. Bg3 {[%emt 0:14:29]} d5 {[%emt 0:02:50]} 14. Bd3 {[%emt 0:00:28]} Nc5 {[%emt 0:00:24]} 15. O-O {[%emt 0:00:22]} Qb6 {[%emt 0:03:34]} 16. Bc2 {[%emt 0:09:20]} Bf6 {[%emt 0:20:01]} (16... Ne4 $11) 17. Be5 {[%emt 0:34:24]} ({White should play} 17. Re1 $14) 17... Bxe5 {[%emt 0:18:49]} 18. Nxe5 {[%emt 0:00:02]} Qxb2 {[%emt 0:09:54]} 19. f4 {[%emt 0:05:34] [#] And now Rb1 would win.} Nd7 {[%emt 0:10:19]} 20. Qd3 {[%emt 0:07:28][%csl Gc2][%cal Rd3h7]} Qb6+ {[%emt 0:00:14]} 21. Rf2 {[%emt 0:01:36][%csl Gc2][%cal Rd3h7]} Nf6 {[%emt 0:01:22]} (21... Nxe5 $2 22. Qxh7+ Kf7 23. fxe5+ Ke8 24. Raf1 Rxf2 25. Rxf2 $18) 22. Rb1 {[%emt 0:01:16]} Qc5 {[%emt 0:00:38]} 23. Rb5 {[%emt 0:03:07]} Qd6 {[%emt 0:04:11] [#] Strongly threatening ...Ba6.} (23... Qc7 $5 {[%cal Rc8a6]} 24. Rb3 Bd7 $11) 24. Qe3 {[%emt 0:04:01]} Rb8 {[%emt 0:01:55]} 25. Rxb8 {[%emt 0:03:37] The position is equal.} Qxb8 {[%emt 0:00:02]} 26. Bd3 {[%emt 0:00:20]} Qb6 {[%emt 0:01:30]} 27. Qxb6 {[%emt 0:00:48]} axb6 {[%emt 0:00:01]} 28. Rc2 {[%emt 0:02:10]} Nd7 {[%emt 0:06:24]} 29. Nxd7 {[%emt 0:05:25]} Bxd7 {[%emt 0:00:01][%mdl 4096] Endgame KRB-KRB} 30. Rc7 {[%emt 0:00:22]} Be8 {[%emt 0:01:04]} 31. Re7 {[%emt 0:00:39]} Bg6 {[%emt 0:02:32]} 32. Bxg6 {[%emt 0:00:56]} hxg6 {[%emt 0:00:01] KR-KR} 33. g3 {[%emt 0:01:11]} Ra8 {[%emt 0:00:19]} 34. Rxe6 {[%emt 0:00:05]} Kf7 {[%emt 0:00:37]} 35. Rd6 {[%emt 0:00:45]} Rxa3 {[%emt 0:00:20]} 36. Rxd5 {[%emt 0:00:05]} Ra1+ {[%emt 0:01:09]} 37. Kg2 {[%emt 0:00:03]} Ra2+ {[%emt 0:00:05]} 38. Kh3 {[%emt 0:00:12]} Rb2 {[%emt 0:00:08]} 39. Rd7+ {[%emt 0:01:00]} Kg8 {[%emt 0:01:28]} 40. g4 {[%emt 0:01:16]} Rb3+ {[%emt 0:01:14]} 41. Kh4 {[%emt 0:50:11]} Kh7 {[%emt 0:50:44]} 42. Rd6 {[%emt 0:01:09]} Rb4 {[%emt 0:00:00]} 43. Kg5 {[%emt 0:00:00]} Rb5+ $1 {[%emt 0:00:00][%mdl 32768] Weighted Error Value: White=0.10 (very precise) /Black=0.12 (very precise) . Loss on time!?} 1-0

[Event "German Bundesliga 2022-23"]
[Site "Germany"]
[Date "2022.10.23"]
[Round "1.14"]
[White "Thybo, Jesper Sondergaard"]
[Black "Bacrot, Etienne"]
[Result "1/2-1/2"]
[ECO "A14"]
[WhiteElo "2498"]
[BlackElo "2646"]
[Annotator "ChessBase"]
[PlyCount "80"]
[EventDate "2022.10.21"]
[EventType "team-tourn"]
[EventCountry "GER"]
[SourceTitle "playchess.com"]
[Source "ChessBase"]
[SourceQuality "1"]
[TimeControl "40/6000+30:3000+30"]

1. d4 d5 2. c4 e6 3. Nf3 Nf6 4. g3 Be7 5. Bg2 O-O 6. O-O c6 7. Nc3 a5 8. b3 b6 9. Bb2 Ba6 10. Nd2 b5 11. c5 b4 12. Ncb1 Nbd7 13. Nf3 Ne4 14. Re1 f5 15. a3 {[%emt 0:17:30]} Bb5 {[%emt 0:17:30]} 16. Nfd2 {[%emt 0:00:30]} e5 {[%emt 0:00:30]} 17. Nf3 {[%emt 0:00:30]} exd4 {[%emt 0:00:30]} 18. Nxd4 {[%emt 0:00:30]} Bxc5 {[%emt 0:00:30]} 19. e3 {[%emt 0:00:30]} Bxd4 {[%emt 0:00:30]} 20. Qxd4 {[%emt 0:00:30]} Qe7 {[%emt 0:00:30]} 21. axb4 {[%emt 0:00:30]} axb4 {[%emt 0:00:30]} 22. Nd2 {[%emt 0:00:30]} Ndf6 {[%emt 0:00:30]} 23. Nxe4 {[%emt 0:00:30]} Nxe4 {[%emt 0:00:30]} 24. Rxa8 {[%emt 0:00:30]} Rxa8 {[%emt 0:00:30]} 25. Ra1 {[%emt 0:00:30]} Rxa1+ {[%emt 0:00:30]} 26. Bxa1 {[%emt 0:00:30]} h6 {[%emt 0:00:30]} 27. h3 {[%emt 0:00:30]} Qf6 {[%emt 0:00:30]} 28. Bxe4 {[%emt 0:00:30]} Qxd4 {[%emt 0:00:30]} 29. Bxd4 {[%emt 0:00:30]} fxe4 {[%emt 0:00:30]} 30. Bc5 {[%emt 0:00:30]} Be2 {[%emt 0:00:30]} 31. Bxb4 {[%emt 0:00:30]} Bd1 {[%emt 0:00:30]} 32. h4 {[%emt 0:00:30]} Bxb3 {[%emt 0:00:30]} 33. Kf1 {[%emt 0:00:30]} Kf7 {[%emt 0:00:30]} 34. Ke2 {[%emt 0:00:30]} h5 {[%emt 0:00:30]} 35. Bc5 {[%emt 0:00:30]} Ke6 {[%emt 0:00:30]} 36. Kd2 {[%emt 0:00:30]} Kf5 {[%emt 0:00:30]} 37. Ke2 {[%emt 0:00:30]} Kg4 {[%emt 0:00:30]} 38. Ke1 {[%emt 0:00:30]} Ba4 {[%emt 0:00:30]} 39. Ke2 {[%emt 0:00:30]} g5 {[%emt 0:00:30]} 40. hxg5 {[%emt 0:00:30]} Kxg5 {[%emt 0:00:30]} 1/2-1/2